[Event "Open Nuevo Centro. Jornada 1"]
[Site "Chess.com"]
[Date "2020.06.19"]
[Round "7"]
[White "G�mez Alonso, �scar"]
[Black "Camison Zornoza, Cesar"]
[Result "1-0"]
[WhiteElo "1748"]
[BlackElo "1381"]
[TimeControl "180+2"]
[EndTime "11:51:20 PDT"]
[Termination "Victoria de osgo78 por abandono"]

1. d4 {[%clk 0:03:01.9]} 1... Nf6 {[%clk 0:02:58.8]} 2. c4 {[%clk 0:03:02.9]}
2... c5 {[%clk 0:02:57.2]} 3. d5 {[%clk 0:03:03.5]} 3... b5 {[%clk 0:02:58.2]}
4. cxb5 {[%clk 0:03:01.4]} 4... a6 {[%clk 0:02:59.6]} 5. e3 {[%clk 0:03:01.8]}
5... axb5 {[%clk 0:02:58.2]} 6. Bxb5 {[%clk 0:03:01.3]} 6... g6 {[%clk
0:02:57.9]} 7. Nc3 {[%clk 0:03:02.3]} 7... Bg7 {[%clk 0:02:58.5]} 8. a4 {[%clk
0:03:02.9]} 8... O-O {[%clk 0:02:59]} 9. Nf3 {[%clk 0:03:04]} 9... d6 {[%clk
0:02:51.6]} 10. O-O {[%clk 0:03:04.6]} 10... Bd7 {[%clk 0:02:49.8]} 11. Bd2
{[%clk 0:02:57.4]} 11... Qb6 {[%clk 0:02:41.9]} 12. Bxd7 {[%clk 0:02:56.9]}
12... Nbxd7 {[%clk 0:02:42.4]} 13. b3 {[%clk 0:02:45.4]} 13... Rfb8 {[%clk
0:02:42.1]} 14. Nb5 {[%clk 0:02:45]} 14... Ne4 {[%clk 0:02:36.3]} 15. Rb1 {[%clk
0:02:43.1]} 15... Nxd2 {[%clk 0:02:35.3]} 16. Qxd2 {[%clk 0:02:40.6]} 16... Nf6
{[%clk 0:02:18.1]} 17. Qd3 {[%clk 0:02:39.7]} 17... Nd7 {[%clk 0:02:10.3]} 18.
e4 {[%clk 0:02:39.7]} 18... Ne5 {[%clk 0:02:10.5]} 19. Nxe5 {[%clk 0:02:40.6]}
19... Bxe5 {[%clk 0:02:10.9]} 20. Kh1 {[%clk 0:02:41.6]} 20... Rf8 {[%clk
0:01:56.4]} 21. f4 {[%clk 0:02:42.1]} 21... Bg7 {[%clk 0:01:56.4]} 22. Rbe1
{[%clk 0:02:39]} 22... Qb7 {[%clk 0:01:52.6]} 23. e5 {[%clk 0:02:38.5]} 23...
dxe5 {[%clk 0:01:46.4]} 24. fxe5 {[%clk 0:02:39.2]} 24... Rad8 {[%clk
0:01:42.6]} 25. d6 {[%clk 0:02:39.5]} 25... exd6 {[%clk 0:01:37.1]} 26. exd6
{[%clk 0:02:37.9]} 26... Qc6 {[%clk 0:01:32.5]} 27. Qe4 {[%clk 0:02:25.9]} 27...
Qd7 {[%clk 0:01:17]} 28. Qe7 {[%clk 0:02:24.7]} 28... Bd4 {[%clk 0:00:44.7]} 29.
Rd1 {[%clk 0:02:09.9]} 29... Bg7 {[%clk 0:00:36]} 30. Rfe1 {[%clk 0:01:55.2]}
30... f5 {[%clk 0:00:26.2]} 31. Qxd7 {[%clk 0:01:54.4]} 31... Rxd7 {[%clk
0:00:27]} 32. Re7 {[%clk 0:01:52.8]} 32... Rfd8 {[%clk 0:00:25.8]} 33. Rxd7
{[%clk 0:01:51.9]} 33... Rxd7 {[%clk 0:00:26.6]} 34. g3 {[%clk 0:01:53.3]} 34...
Kf7 {[%clk 0:00:25.9]} 35. Rd5 {[%clk 0:01:53.6]} 35... Bf8 {[%clk 0:00:22.7]}
36. Rxc5 {[%clk 0:01:53.6]} 36... Bxd6 {[%clk 0:00:22.6]} 37. Nxd6+ {[%clk
0:01:52.9]} 37... Rxd6 {[%clk 0:00:23.7]} 38. Rc7+ {[%clk 0:01:54]} 38... Kf6
{[%clk 0:00:25]} 39. Rxh7 {[%clk 0:01:47]} 39... Rb6 {[%clk 0:00:25.7]} 40. Ra7
{[%clk 0:01:39.6]} 40... Rxb3 {[%clk 0:00:26.2]} 41. a5 {[%clk 0:01:40.8]} 41...
Rb2 {[%clk 0:00:26.5]} 42. Ra6+ {[%clk 0:01:38.2]} 42... Kg7 {[%clk 0:00:24.6]}
43. h4 {[%clk 0:01:35.1]} 43... Ra2 {[%clk 0:00:24.6]} 44. Kg1 {[%clk
0:01:34.8]} 44... Kh6 {[%clk 0:00:19.7]} 45. Ra8 {[%clk 0:01:32.9]} 45... g5
{[%clk 0:00:18.1]} 46. a6 {[%clk 0:01:32.2]} 46... gxh4 {[%clk 0:00:18.6]} 47.
gxh4 {[%clk 0:01:33.2]} 47... Kh5 {[%clk 0:00:19.7]} 48. a7 {[%clk 0:01:34.5]}
48... Ra1+ {[%clk 0:00:15]} 49. Kf2 {[%clk 0:01:34.8]} 49... Ra2+ {[%clk
0:00:16.1]} 50. Kf3 {[%clk 0:01:35.8]} 50... Ra3+ {[%clk 0:00:16.5]} 51. Kf4
{[%clk 0:01:36.8]} 51... Ra4+ {[%clk 0:00:17.6]} 52. Kxf5 {[%clk 0:01:37.3]}
52... Ra5+ {[%clk 0:00:17.9]} 53. Ke4 {[%clk 0:01:37.6]} 53... Ra4+ {[%clk
0:00:17.9]} 54. Kd5 {[%clk 0:01:38.7]} 54... Ra5+ {[%clk 0:00:19.4]} 55. Kc4
{[%clk 0:01:39.7]} 55... Ra4+ {[%clk 0:00:16.6]} 56. Kb5 {[%clk 0:01:40.7]}
56... Rxh4 {[%clk 0:00:13.2]} 57. Rh8+ {[%clk 0:01:41.1]} 1

[Event "Open Nuevo Centro. Jornada 1"]
[Site "Chess.com"]
[Date "2020.06.19"]
[Round "7"]
[White "Sanchez Saez, Francisco"]
[Black "Granero Roca, Antonio"]
[Result "0-1"]
[WhiteElo "2290"]
[BlackElo "2528"]
[TimeControl "180+2"]
[EndTime "11:51:24 PDT"]
[Termination "Victoria de Somtor por abandono"]

1. e4 {[%clk 0:03:00]} 1... c6 {[%clk 0:03:00.2]} 2. d4 {[%clk 0:02:59.7]} 2...
d5 {[%clk 0:03:01]} 3. e5 {[%clk 0:03:00.6]} 3... c5 {[%clk 0:03:01.9]} 4. dxc5
{[%clk 0:03:01.4]} 4... Nc6 {[%clk 0:03:02.6]} 5. Nf3 {[%clk 0:02:59]} 5... Bg4
{[%clk 0:03:02.1]} 6. c3 {[%clk 0:02:58.8]} 6... e6 {[%clk 0:03:02.1]} 7. Be3
{[%clk 0:02:58.9]} 7... Nge7 {[%clk 0:02:59.8]} 8. Bb5 {[%clk 0:02:57]} 8...
Bxf3 {[%clk 0:02:59.9]} 9. Qxf3 {[%clk 0:02:56.1]} 9... Nf5 {[%clk 0:02:59.2]}
10. Bd4 {[%clk 0:02:46.5]} 10... Be7 {[%clk 0:02:59]} 11. O-O {[%clk 0:02:44.2]}
11... O-O {[%clk 0:02:59.5]} 12. Bxc6 {[%clk 0:02:44.5]} 12... bxc6 {[%clk
0:03:00.4]} 13. b4 {[%clk 0:02:45.5]} 13... a5 {[%clk 0:03:01.1]} 14. Be3 {[%clk
0:02:23.5]} 14... Qb8 {[%clk 0:02:57.7]} 15. Qf4 {[%clk 0:02:13]} 15... f6
{[%clk 0:02:28.2]} 16. exf6 {[%clk 0:01:28.3]} 16... Bxf6 {[%clk 0:02:28.4]} 17.
bxa5 {[%clk 0:01:05.5]} 17... Qxf4 {[%clk 0:02:19.5]} 18. Bxf4 {[%clk
0:01:07.4]} 18... Rxa5 {[%clk 0:02:19.3]} 19. Nd2 {[%clk 0:01:06.4]} 19... Bxc3
{[%clk 0:02:19.2]} 20. Rac1 {[%clk 0:00:59.7]} 20... Bxd2 {[%clk 0:02:17.4]} 21.
Bxd2 {[%clk 0:01:01.6]} 21... Rxa2 {[%clk 0:02:17.7]} 22. Bg5 {[%clk 0:00:57.4]}
22... Nd4 {[%clk 0:02:15.3]} 23. Rb1 {[%clk 0:00:50.7]} 23... h6 {[%clk
0:02:14.5]} 24. Be7 {[%clk 0:00:44.4]} 24... Rf7 {[%clk 0:02:12.3]} 25. Bd6
{[%clk 0:00:44.9]} 25... Ne2+ {[%clk 0:02:01.6]} 26. Kh1 {[%clk 0:00:45.7]}
26... Nc3 {[%clk 0:02:02.5]} 27. Rb8+ {[%clk 0:00:40.9]} 27... Kh7 {[%clk
0:02:02.5]} 28. f3 {[%clk 0:00:42.1]} 28... Nb5 {[%clk 0:01:45.1]} 29. Re8
{[%clk 0:00:40.6]} 29... Nd4 {[%clk 0:01:38.2]} 30. Be5 {[%clk 0:00:38]} 30...
Nc2 {[%clk 0:01:32.1]} 31. Rxe6 {[%clk 0:00:34.6]} 31... Ne3 {[%clk 0:01:33]}
32. Rg1 {[%clk 0:00:35.8]} 32... Nc4 {[%clk 0:01:26.3]} 33. Bg3 {[%clk
0:00:32.8]} 33... d4 {[%clk 0:01:24.3]} 34. h3 {[%clk 0:00:25.5]} 34... d3
{[%clk 0:01:24.2]} 35. Rd1 {[%clk 0:00:26.8]} 35... d2 {[%clk 0:01:24.4]} 36.
Re4 {[%clk 0:00:26.3]} 36... Rc2 {[%clk 0:01:13.1]} 37. Rd4 {[%clk 0:00:25.1]}
37... Re7 {[%clk 0:01:07.4]} 38. Bf4 {[%clk 0:00:25.4]} 38... Re2 {[%clk
0:01:07.2]} 39. Kh2 {[%clk 0:00:23.8]} 39... g5 {[%clk 0:01:07.9]} 40. Bg3
{[%clk 0:00:23.5]} 40... Ne3 {[%clk 0:01:07.7]} 41. Ra1 {[%clk 0:00:22]} 41...
Rxg2+ {[%clk 0:01:05.1]} 42. Kh1 {[%clk 0:00:21.9]} 42... Rxg3 {[%clk
0:01:06.1]} 43. Rd6 {[%clk 0:00:22.3]} 43... d1=Q+ {[%clk 0:00:58.5]} 44. Raxd1
{[%clk 0:00:21.8]} 44... Nxd1 {[%clk 0:00:59.1]} 45. Rxd1 {[%clk 0:00:23.7]}
45... Rxh3+ {[%clk 0:00:59.9]} 46. Kg1 {[%clk 0:00:24.3]} 46... Rxf3 {[%clk
0:01:00.8]} 47. Rd6 {[%clk 0:00:25.9]} 47... Rxc5 {[%clk 0:01:00.6]} 48. Kg2
{[%clk 0:00:27.8]} 48... Rf4 {[%clk 0:01:01.2]} 49. Kg3 {[%clk 0:00:29.7]} 49...
Rc3+ {[%clk 0:01:00.8]} 50. Kg2 {[%clk 0:00:31.6]} 50... c5 {[%clk 0:00:59.6]}
51. Rd7+ {[%clk 0:00:33.5]} 0

[Event "Open Nuevo Centro. Jornada 1"]
[Site "Chess.com"]
[Date "2020.06.19"]
[Round "7"]
[White "Gutierrez Marco, Dario"]
[Black "Bendayan Claros, Aaron"]
[Result "0-1"]
[WhiteElo "1920"]
[BlackElo "1740"]
[TimeControl "180+2"]
[EndTime "11:51:26 PDT"]
[Termination "Victoria de Cuajada_Zero por abandono"]

1. e4 {[%clk 0:03:01.9]} 1... c6 {[%clk 0:02:58.5]} 2. d4 {[%clk 0:03:02.4]}
2... d5 {[%clk 0:02:59.3]} 3. e5 {[%clk 0:03:03.8]} 3... Bf5 {[%clk 0:02:58.1]}
4. h4 {[%clk 0:03:04.5]} 4... h5 {[%clk 0:02:58.4]} 5. Bd3 {[%clk 0:03:05.2]}
5... Bxd3 {[%clk 0:02:58.4]} 6. Qxd3 {[%clk 0:03:07.1]} 6... e6 {[%clk
0:02:59.7]} 7. Bg5 {[%clk 0:03:07.1]} 7... Qa5+ {[%clk 0:03:00]} 8. Nd2 {[%clk
0:03:07.3]} 8... Qa6 {[%clk 0:03:01.1]} 9. c4 {[%clk 0:03:06.4]} 9... Bb4 {[%clk
0:03:01.9]} 10. Nf3 {[%clk 0:02:55.5]} 10... dxc4 {[%clk 0:02:56.5]} 11. Qc2
{[%clk 0:02:56.2]} 11... b5 {[%clk 0:02:53.2]} 12. O-O {[%clk 0:02:54]} 12...
Nh6 {[%clk 0:02:35.2]} 13. a4 {[%clk 0:02:53.5]} 13... Qb7 {[%clk 0:02:32]} 14.
Ne4 {[%clk 0:02:37.2]} 14... Nf5 {[%clk 0:02:28.1]} 15. axb5 {[%clk 0:02:31.4]}
15... cxb5 {[%clk 0:02:28.1]} 16. b3 {[%clk 0:02:32.7]} 16... a5 {[%clk
0:02:13.2]} 17. bxc4 {[%clk 0:02:29.1]} 17... bxc4 {[%clk 0:02:13.9]} 18. Qxc4
{[%clk 0:02:31]} 18... Qxe4 {[%clk 0:02:06]} 19. Rfe1 {[%clk 0:01:47]} 19... Qc6
{[%clk 0:02:00.6]} 20. Qb3 {[%clk 0:01:38]} 20... O-O {[%clk 0:01:58]} 21. Rec1
{[%clk 0:01:37.6]} 21... Qd5 {[%clk 0:01:58.1]} 22. Qxd5 {[%clk 0:01:35.6]}
22... exd5 {[%clk 0:02:00]} 23. Rc7 {[%clk 0:01:29.8]} 23... f6 {[%clk
0:01:00.9]} 24. exf6 {[%clk 0:01:24.6]} 24... gxf6 {[%clk 0:01:02.8]} 25. Bf4
{[%clk 0:01:19.2]} 25... Na6 {[%clk 0:01:01.7]} 26. Rc6 {[%clk 0:01:16]} 26...
Kf7 {[%clk 0:00:56.6]} 27. Rac1 {[%clk 0:01:04.5]} 27... Ne7 {[%clk 0:00:56.3]}
28. Rb6 {[%clk 0:00:57.4]} 28... Rfc8 {[%clk 0:00:49.4]} 29. Rxc8 {[%clk
0:00:53.7]} 29... Nxc8 {[%clk 0:00:50.8]} 30. Rc6 {[%clk 0:00:53]} 30... Ne7
{[%clk 0:00:51]} 31. Rb6 {[%clk 0:00:52.6]} 31... a4 {[%clk 0:00:51]} 32. Nd2
{[%clk 0:00:17.2]} 32... a3 {[%clk 0:00:47.4]} 33. Nb3 {[%clk 0:00:17.9]} 33...
a2 {[%clk 0:00:44.6]} 34. g4 {[%clk 0:00:15.7]} 34... Bc3 {[%clk 0:00:43.7]} 35.
gxh5 {[%clk 0:00:14.5]} 35... a1=Q+ {[%clk 0:00:41.9]} 36. Nxa1 {[%clk
0:00:15.8]} 36... Bxa1 {[%clk 0:00:43.1]} 37. h6 {[%clk 0:00:17.7]} 37... Bc3
{[%clk 0:00:38.9]} 38. h7 {[%clk 0:00:17.4]} 38... Nb4 {[%clk 0:00:39.9]} 39.
Rb7 {[%clk 0:00:16.9]} 39... Rh8 {[%clk 0:00:37.9]} 40. Bd6 {[%clk 0:00:17.7]}
40... Nc6 {[%clk 0:00:39.2]} 41. Rb3 {[%clk 0:00:15.5]} 41... Bxd4 {[%clk
0:00:39.6]} 42. Rh3 {[%clk 0:00:16]} 42... Rxh7 {[%clk 0:00:40.1]} 43. h5 {[%clk
0:00:17.9]} 43... Ke6 {[%clk 0:00:40.1]} 44. Bg3 {[%clk 0:00:18.1]} 44... Nf5
{[%clk 0:00:38.2]} 45. Kg2 {[%clk 0:00:18.4]} 45... Ne5 {[%clk 0:00:37.8]} 46.
Bxe5 {[%clk 0:00:18.8]} 46... Bxe5 {[%clk 0:00:38.2]} 0

[Event "Open Nuevo Centro. Jornada 1"]
[Site "Chess.com"]
[Date "2020.06.19"]
[Round "7"]
[White "Aymerich Rosell, Pablo"]
[Black "Zamora Soler, Raul"]
[Result "1/2-1/2"]
[WhiteElo "1991"]
[BlackElo "1759"]
[TimeControl "180+2"]
[EndTime "11:51:31 PDT"]
[Termination "Partida en tablas por material insuficiente"]

1. e4 {[%clk 0:03:01.9]} 1... c5 {[%clk 0:02:59.3]} 2. Nf3 {[%clk 0:02:58]} 2...
Nc6 {[%clk 0:02:53.1]} 3. d4 {[%clk 0:02:57.3]} 3... cxd4 {[%clk 0:02:53.6]} 4.
Nxd4 {[%clk 0:02:58.3]} 4... Nf6 {[%clk 0:02:55]} 5. Nc3 {[%clk 0:02:58.8]} 5...
e6 {[%clk 0:02:56]} 6. Ndb5 {[%clk 0:02:58.9]} 6... Bb4 {[%clk 0:02:56.7]} 7. a3
{[%clk 0:02:59.8]} 7... Bxc3+ {[%clk 0:02:57.7]} 8. Nxc3 {[%clk 0:03:00.8]} 8...
O-O {[%clk 0:02:54.7]} 9. Bd3 {[%clk 0:03:00]} 9... d5 {[%clk 0:02:55.2]} 10.
O-O {[%clk 0:02:54.2]} 10... dxe4 {[%clk 0:02:55.9]} 11. Nxe4 {[%clk 0:02:55.3]}
11... Nxe4 {[%clk 0:02:57]} 12. Bxe4 {[%clk 0:02:56.9]} 12... Qxd1 {[%clk
0:02:57]} 13. Rxd1 {[%clk 0:02:58.8]} 13... Ne5 {[%clk 0:02:48.9]} 14. Bf4
{[%clk 0:02:50.4]} 14... Ng6 {[%clk 0:02:49.9]} 15. Bg3 {[%clk 0:02:45.4]} 15...
f5 {[%clk 0:02:47.2]} 16. Bd3 {[%clk 0:02:40.9]} 16... e5 {[%clk 0:02:35.7]} 17.
Bc4+ {[%clk 0:02:37.9]} 17... Kh8 {[%clk 0:02:31.2]} 18. f3 {[%clk 0:02:37.8]}
18... f4 {[%clk 0:02:26.5]} 19. Bf2 {[%clk 0:02:37.8]} 19... Bf5 {[%clk
0:02:27.1]} 20. c3 {[%clk 0:02:30.9]} 20... b6 {[%clk 0:02:24.4]} 21. Rd6 {[%clk
0:02:21.2]} 21... Rad8 {[%clk 0:02:16.3]} 22. Rad1 {[%clk 0:02:20.5]} 22... Rxd6
{[%clk 0:02:17.2]} 23. Rxd6 {[%clk 0:02:20.5]} 23... Rc8 {[%clk 0:02:16.7]} 24.
Ba6 {[%clk 0:02:11.6]} 24... Re8 {[%clk 0:02:12.8]} 25. c4 {[%clk 0:01:52.3]}
25... h6 {[%clk 0:02:03.4]} 26. b4 {[%clk 0:01:49.3]} 26... e4 {[%clk
0:01:52.8]} 27. fxe4 {[%clk 0:01:46.3]} 27... Bxe4 {[%clk 0:01:54.1]} 28. c5
{[%clk 0:01:40.3]} 28... bxc5 {[%clk 0:01:52.1]} 29. bxc5 {[%clk 0:01:40.3]}
29... Re7 {[%clk 0:01:47.5]} 30. c6 {[%clk 0:01:29]} 30... Rc7 {[%clk
0:01:33.6]} 31. Bb7 {[%clk 0:01:22.8]} 31... Ne5 {[%clk 0:01:14.8]} 32. Bxa7
{[%clk 0:00:43.8]} 32... Nxc6 {[%clk 0:01:07.1]} 33. Bxc6 {[%clk 0:00:16.8]}
33... Rxc6 {[%clk 0:01:06.4]} 34. Rxc6 {[%clk 0:00:08.7]} 34... Bxc6 {[%clk
0:01:06.7]} 35. Bb8 {[%clk 0:00:08.7]} 35... f3 {[%clk 0:01:05.2]} 36. gxf3
{[%clk 0:00:09.1]} 36... Bxf3 {[%clk 0:01:06.2]} 37. Kf2 {[%clk 0:00:10.2]}
37... Ba8 {[%clk 0:01:06.9]} 38. Kg3 {[%clk 0:00:11.3]} 38... Kg8 {[%clk
0:01:08.3]} 39. Kf4 {[%clk 0:00:12.3]} 39... g6 {[%clk 0:01:09.8]} 40. h4 {[%clk
0:00:13.3]} 40... Kf7 {[%clk 0:01:10.9]} 41. Ke5 {[%clk 0:00:14.2]} 41... Bf3
{[%clk 0:01:07.1]} 42. a4 {[%clk 0:00:14.7]} 42... g5 {[%clk 0:01:07]} 43. hxg5
{[%clk 0:00:14.8]} 43... hxg5 {[%clk 0:01:04.2]} 44. a5 {[%clk 0:00:15.7]} 44...
Kg6 {[%clk 0:01:04.5]} 45. a6 {[%clk 0:00:14.8]} 45... Kh5 {[%clk 0:01:02.6]}
46. a7 {[%clk 0:00:14.8]} 46... Ba8 {[%clk 0:01:00.5]} 47. Kd4 {[%clk 0:00:14]}
47... Kg4 {[%clk 0:01:01.1]} 48. Ke3 {[%clk 0:00:14.9]} 48... Kh3 {[%clk
0:01:00.7]} 49. Kf2 {[%clk 0:00:15.7]} 49... g4 {[%clk 0:01:01.8]} 50. Kg1
{[%clk 0:00:17]} 50... g3 {[%clk 0:01:03.1]} 51. Bxg3 {[%clk 0:00:16.5]} 51...
Kxg3 {[%clk 0:01:03.9]} 52. Kf1 {[%clk 0:00:17.5]} 52... Kf3 {[%clk 0:01:05.3]}
53. Ke1 {[%clk 0:00:18.6]} 53... Ke3 {[%clk 0:01:06.7]} 54. Kd1 {[%clk
0:00:19.7]} 54... Kd3 {[%clk 0:01:08]} 55. Ke1 {[%clk 0:00:20.9]} 55... Kc4
{[%clk 0:01:09]} 56. Kf2 {[%clk 0:00:21.9]} 56... Kb5 {[%clk 0:01:10.6]} 57. Ke3
{[%clk 0:00:23]} 57... Kb6 {[%clk 0:01:12.5]} 58. Kd4 {[%clk 0:00:23.9]} 58...
Kxa7 {[%clk 0:01:14.4]} 1/2-1

[Event "Open Nuevo Centro. Jornada 1"]
[Site "Chess.com"]
[Date "2020.06.19"]
[Round "7"]
[White "Yuste Valenzuela, Alejandro"]
[Black "Donate Moreno, David"]
[Result "1-0"]
[WhiteElo "1787"]
[BlackElo "1511"]
[TimeControl "180+2"]
[EndTime "11:51:32 PDT"]
[Termination "Victoria de alejandrito290 por abandono"]

1. e4 {[%clk 0:03:01.9]} 1... c6 {[%clk 0:02:56.3]} 2. d4 {[%clk 0:03:02.2]}
2... d5 {[%clk 0:02:57]} 3. e5 {[%clk 0:03:03.7]} 3... Bf5 {[%clk 0:02:55.8]} 4.
h4 {[%clk 0:03:04]} 4... h6 {[%clk 0:02:56.1]} 5. g4 {[%clk 0:03:04.5]} 5... Bh7
{[%clk 0:02:56.4]} 6. e6 {[%clk 0:03:05.5]} 6... fxe6 {[%clk 0:02:55.3]} 7. Bd3
{[%clk 0:03:06.1]} 7... Nf6 {[%clk 0:02:51.2]} 8. Bxh7 {[%clk 0:03:05.5]} 8...
Nxh7 {[%clk 0:02:49.6]} 9. Qd3 {[%clk 0:03:04.4]} 9... Nf6 {[%clk 0:02:49.6]}
10. Qg6+ {[%clk 0:02:59]} 10... Kd7 {[%clk 0:02:49.3]} 11. Nf3 {[%clk
0:02:56.7]} 11... Qe8 {[%clk 0:02:48.5]} 12. Ne5+ {[%clk 0:02:54]} 12... Kc7
{[%clk 0:02:41.9]} 13. Bf4 {[%clk 0:02:38.4]} 13... Kc8 {[%clk 0:02:41.3]} 14.
Qd3 {[%clk 0:02:20.1]} 14... Nbd7 {[%clk 0:02:39.8]} 15. Nxd7 {[%clk 0:02:01.8]}
15... Qxd7 {[%clk 0:02:39.2]} 16. Nc3 {[%clk 0:01:53.8]} 16... b6 {[%clk
0:02:15.9]} 17. f3 {[%clk 0:01:36.8]} 17... Kb7 {[%clk 0:02:13]} 18. O-O-O
{[%clk 0:01:36.7]} 18... Ne8 {[%clk 0:02:07.1]} 19. h5 {[%clk 0:01:30.4]} 19...
Nd6 {[%clk 0:02:05.5]} 20. Kb1 {[%clk 0:01:26.7]} 20... a5 {[%clk 0:01:56.3]}
21. b3 {[%clk 0:01:26.4]} 21... b5 {[%clk 0:01:24.8]} 22. a4 {[%clk 0:01:19.7]}
22... bxa4 {[%clk 0:01:12.4]} 23. Nxa4 {[%clk 0:01:21.6]} 23... Qc8 {[%clk
0:00:54.4]} 24. Rhe1 {[%clk 0:01:14.7]} 24... Nb5 {[%clk 0:00:51.9]} 25. Nc5+
{[%clk 0:01:11.3]} 25... Kb6 {[%clk 0:00:50.8]} 26. Rxe6 {[%clk 0:00:54.6]}
26... Ra6 {[%clk 0:00:31.1]} 27. Na4+ {[%clk 0:00:51.8]} 27... Ka7 {[%clk
0:00:25.5]} 28. Nc5 {[%clk 0:00:40.7]} 28... a4 {[%clk 0:00:20.2]} 29. Nxa6
{[%clk 0:00:38.4]} 29... Qxe6 {[%clk 0:00:20.3]} 30. Nc5 {[%clk 0:00:30.1]}
30... Qc8 {[%clk 0:00:16.4]} 31. bxa4 {[%clk 0:00:30.3]} 31... Nd6 {[%clk
0:00:17.3]} 32. Qb3 {[%clk 0:00:21.4]} 32... Nc4 {[%clk 0:00:16]} 33. a5 {[%clk
0:00:16.6]} 33... e5 {[%clk 0:00:13.9]} 34. Bxe5 {[%clk 0:00:15.4]} 34... Nxe5
{[%clk 0:00:14.2]} 35. Qb6+ {[%clk 0:00:14.3]} 35... Ka8 {[%clk 0:00:15]} 36.
dxe5 {[%clk 0:00:14.5]} 36... Bxc5 {[%clk 0:00:15.9]} 37. Qxc5 {[%clk
0:00:16.4]} 37... Qa6 {[%clk 0:00:16.8]} 38. Ka1 {[%clk 0:00:14.4]} 38... Rb8
{[%clk 0:00:17.2]} 39. Rb1 {[%clk 0:00:14.9]} 39... Rxb1+ {[%clk 0:00:13.2]} 40.
Kxb1 {[%clk 0:00:16.8]} 40... Qb5+ {[%clk 0:00:14.6]} 41. Qxb5 {[%clk
0:00:17.6]} 41... cxb5 {[%clk 0:00:16.5]} 42. e6 {[%clk 0:00:19.1]} 42... Kb7
{[%clk 0:00:17.4]} 43. e7 {[%clk 0:00:20.5]} 1

[Event "Open Nuevo Centro. Jornada 1"]
[Site "Chess.com"]
[Date "2020.06.19"]
[Round "7"]
[White "Lopez Mateo, Juan Carlos"]
[Black "Garcia Trobat, Francisco"]
[Result "0-1"]
[WhiteElo "1945"]
[BlackElo "2229"]
[TimeControl "180+2"]
[EndTime "11:51:45 PDT"]
[Termination "Victoria de NoSure por tiempo"]

1. e4 {[%clk 0:03:01.9]} 1... c5 {[%clk 0:03:00.7]} 2. Nf3 {[%clk 0:03:02.7]}
2... d6 {[%clk 0:03:02]} 3. d4 {[%clk 0:03:03.1]} 3... cxd4 {[%clk 0:03:03.9]}
4. Qxd4 {[%clk 0:03:04.2]} 4... Nc6 {[%clk 0:03:03.2]} 5. Bb5 {[%clk 0:03:04.7]}
5... Qa5+ {[%clk 0:03:04.6]} 6. Nc3 {[%clk 0:03:02.1]} 6... Qxb5 {[%clk
0:03:06]} 7. Nxb5 {[%clk 0:03:03.7]} 7... Nxd4 {[%clk 0:03:07.3]} 8. Nfxd4
{[%clk 0:02:52.3]} 8... Kd8 {[%clk 0:03:08.7]} 9. Be3 {[%clk 0:02:37.6]} 9...
Bd7 {[%clk 0:03:09.6]} 10. a4 {[%clk 0:02:28.5]} 10... Nf6 {[%clk 0:03:05.8]}
11. f3 {[%clk 0:02:29.7]} 11... a6 {[%clk 0:02:50.2]} 12. Nc3 {[%clk 0:02:29.9]}
12... Rc8 {[%clk 0:02:46.8]} 13. g4 {[%clk 0:02:26.7]} 13... e6 {[%clk
0:02:30.9]} 14. O-O-O {[%clk 0:02:27]} 14... Kc7 {[%clk 0:02:25.7]} 15. Kb1
{[%clk 0:02:20.7]} 15... Be7 {[%clk 0:02:24.7]} 16. h4 {[%clk 0:01:58.5]} 16...
Kb8 {[%clk 0:02:14.8]} 17. h5 {[%clk 0:01:55.1]} 17... Rxc3 {[%clk 0:02:10.8]}
18. bxc3 {[%clk 0:01:53.2]} 18... Bxa4 {[%clk 0:02:12.3]} 19. g5 {[%clk
0:01:46.1]} 19... Nd7 {[%clk 0:02:11.6]} 20. Nb3 {[%clk 0:01:28]} 20... Ne5
{[%clk 0:01:58.4]} 21. Nd2 {[%clk 0:01:05.6]} 21... Rc8 {[%clk 0:01:50.9]} 22.
Kb2 {[%clk 0:01:06.6]} 22... Bb5 {[%clk 0:01:37.3]} 23. Rhg1 {[%clk 0:01:00.8]}
23... Be2 {[%clk 0:01:35.8]} 24. Rde1 {[%clk 0:00:09.3]} 24... Bxf3 {[%clk
0:01:13.9]} 25. Nxf3 {[%clk 0:00:07.8]} 25... Nxf3 {[%clk 0:01:13.8]} 26. Ref1
{[%clk 0:00:06.1]} 26... Nxg1 {[%clk 0:01:14.4]} 27. Rxf7 {[%clk 0:00:06.7]}
27... Bd8 {[%clk 0:00:40.6]} 28. Bxg1 {[%clk 0:00:05.2]} 28... Bxg5 {[%clk
0:00:41.1]} 29. Rxg7 {[%clk 0:00:05.5]} 29... Bf6 {[%clk 0:00:42.3]} 30. Rxh7
{[%clk 0:00:06.1]} 30... Rxc3 {[%clk 0:00:40.8]} 31. Kb1 {[%clk 0:00:06.6]}
31... Rc8 {[%clk 0:00:40.9]} 32. Rf7 {[%clk 0:00:06]} 32... Be5 {[%clk
0:00:40.6]} 33. h6 {[%clk 0:00:06.6]} 33... Rg8 {[%clk 0:00:41.6]} 34. Be3
{[%clk 0:00:05.8]} 34... Rg3 {[%clk 0:00:41.7]} 35. Bd2 {[%clk 0:00:06]} 35...
Rg1+ {[%clk 0:00:41.7]} 36. Ka2 {[%clk 0:00:06.3]} 36... Ra1+ {[%clk 0:00:42.9]}
37. Kb3 {[%clk 0:00:07.7]} 37... Rh1 {[%clk 0:00:43.7]} 38. h7 {[%clk
0:00:08.1]} 38... Rh3+ {[%clk 0:00:39.5]} 39. c3 {[%clk 0:00:08.4]} 39... Ka7
{[%clk 0:00:38.7]} 40. Be1 {[%clk 0:00:08.4]} 40... Kb6 {[%clk 0:00:39.6]} 41.
Bf2+ {[%clk 0:00:08.7]} 41... Kc6 {[%clk 0:00:40.9]} 42. Kc4 {[%clk 0:00:09]}
42... b5+ {[%clk 0:00:41.7]} 43. Kb3 {[%clk 0:00:09.2]} 43... Rxc3+ {[%clk
0:00:42.1]} 44. Ka2 {[%clk 0:00:08.2]} 44... Rh3 {[%clk 0:00:40.9]} 45. Kb1
{[%clk 0:00:07.8]} 45... a5 {[%clk 0:00:41.6]} 46. Rf8 {[%clk 0:00:04.5]} 46...
Rxh7 {[%clk 0:00:40]} 0